[Event "*** Titled Tuesday Blitz"]
[Site "Chess.com"]
[Date "2020.05.05"]
[Round "8"]
[White "Akhayan"]
[Black "Ranindu2003"]
[Result "1-0"]
[WhiteElo "2328"]
[BlackElo "2471"]
[TimeControl "180+1"]
[EndTime "11:38:12 PDT"]
[Termination "Akhayan won by resignation"]

1. d4 {[%clk 0:03:00.9]} 1... Nf6 {[%clk 0:02:58.4]} 2. Nf3 {[%clk 0:03:01.3]}
2... e6 {[%clk 0:02:58]} 3. g3 {[%clk 0:03:01.7]} 3... d5 {[%clk 0:02:57.7]} 4.
Bg2 {[%clk 0:03:02.2]} 4... Be7 {[%clk 0:02:57.3]} 5. O-O {[%clk 0:03:02.8]}
5... O-O {[%clk 0:02:57.4]} 6. c4 {[%clk 0:03:03.4]} 6... dxc4 {[%clk
0:02:57.8]} 7. Ne5 {[%clk 0:02:55.5]} 7... c5 {[%clk 0:02:57.4]} 8. dxc5 {[%clk
0:02:47.5]} 8... Qc7 {[%clk 0:02:55.8]} 9. Nxc4 {[%clk 0:02:40.9]} 9... Qxc5
{[%clk 0:02:54.7]} 10. Nba3 {[%clk 0:02:34.8]} 10... Rd8 {[%clk 0:02:46.9]} 11.
Qb3 {[%clk 0:02:29.7]} 11... Nc6 {[%clk 0:02:37.3]} 12. Be3 {[%clk 0:02:23.4]}
12... Qh5 {[%clk 0:02:34.4]} 13. Bf3 {[%clk 0:01:59.3]} 13... Ng4 {[%clk
0:02:14]} 14. Bxg4 {[%clk 0:01:56.1]} 14... Qxg4 {[%clk 0:02:13.2]} 15. f3
{[%clk 0:01:33.4]} 15... Qh5 {[%clk 0:02:08.4]} 16. Rfd1 {[%clk 0:01:29.6]}
16... Rf8 {[%clk 0:01:38.4]} 17. Qb5 {[%clk 0:01:27.3]} 17... e5 {[%clk
0:01:25]} 18. Bc5 {[%clk 0:01:11.7]} 18... Bxc5+ {[%clk 0:01:05.1]} 19. Qxc5
{[%clk 0:01:11.4]} 19... Be6 {[%clk 0:01:04.8]} 20. Ne3 {[%clk 0:00:53.4]} 20...
Rac8 {[%clk 0:00:53.2]} 21. Qb5 {[%clk 0:00:40.1]} 21... Qh6 {[%clk 0:00:45.3]}
22. Ng2 {[%clk 0:00:32.9]} 22... Nd4 {[%clk 0:00:43.7]} 23. Qxe5 {[%clk
0:00:31.6]} 23... Nc6 {[%clk 0:00:38.7]} 24. Qf4 {[%clk 0:00:31.3]} 24... Qg6
{[%clk 0:00:37.5]} 25. Qe4 {[%clk 0:00:31.2]} 25... Bf5 {[%clk 0:00:37.2]} 26.
Qf4 {[%clk 0:00:31.3]} 26... Be6 {[%clk 0:00:34.8]} 27. Qe4 {[%clk 0:00:31]}
27... Bf5 {[%clk 0:00:29]} 28. Qf4 {[%clk 0:00:31]} 28... Qf6 {[%clk 0:00:21.3]}
29. Nh4 {[%clk 0:00:30.5]} 29... Bg6 {[%clk 0:00:20.4]} 30. Qxf6 {[%clk
0:00:29.6]} 30... gxf6 {[%clk 0:00:21.3]} 31. Rac1 {[%clk 0:00:27.1]} 31... Rfe8
{[%clk 0:00:20.2]} 32. Kf2 {[%clk 0:00:26.1]} 32... Red8 {[%clk 0:00:20.2]} 33.
Rxd8+ {[%clk 0:00:25]} 33... Rxd8 {[%clk 0:00:21.1]} 34. Nc4 {[%clk 0:00:24.9]}
34... b5 {[%clk 0:00:18.8]} 35. Ne3 {[%clk 0:00:24.9]} 35... Nd4 {[%clk
0:00:19.3]} 36. b3 {[%clk 0:00:23]} 36... Kf8 {[%clk 0:00:18.4]} 37. g4 {[%clk
0:00:22.1]} 37... Ne6 {[%clk 0:00:15.9]} 38. Nhf5 {[%clk 0:00:19.4]} 38... h5
{[%clk 0:00:12.9]} 39. h3 {[%clk 0:00:18.9]} 39... hxg4 {[%clk 0:00:12.8]} 40.
hxg4 {[%clk 0:00:18.8]} 40... Nf4 {[%clk 0:00:13]} 41. Rd1 {[%clk 0:00:16.7]}
41... Rc8 {[%clk 0:00:12.7]} 42. Rd2 {[%clk 0:00:16.2]} 42... Ne6 {[%clk
0:00:12.4]} 43. Nh4 {[%clk 0:00:15.7]} 43... Rc1 {[%clk 0:00:11.6]} 44. Rd6
{[%clk 0:00:15.3]} 44... Ke7 {[%clk 0:00:11.7]} 45. Ra6 {[%clk 0:00:14.4]} 45...
Nd4 {[%clk 0:00:07.4]} 46. Rxa7+ {[%clk 0:00:13.6]} 46... Kd6 {[%clk 0:00:07.9]}
47. Ra6+ {[%clk 0:00:13.6]} 47... Kc5 {[%clk 0:00:08.1]} 48. Ra8 {[%clk
0:00:13]} 48... Ra1 {[%clk 0:00:08.5]} 49. Rc8+ {[%clk 0:00:12.7]} 49... Kb4
{[%clk 0:00:08.3]} 50. Nd5+ {[%clk 0:00:12.5]} 50... Ka3 {[%clk 0:00:07.8]} 51.
Ra8+ {[%clk 0:00:12.6]} 51... Kb2 {[%clk 0:00:08.2]} 52. Ne3 {[%clk 0:00:12.6]}
52... Rc1 {[%clk 0:00:07.5]} 53. a4 {[%clk 0:00:11.5]} 53... b4 {[%clk
0:00:07.4]} 54. a5 {[%clk 0:00:11.5]} 54... Nxb3 {[%clk 0:00:08]} 55. a6 {[%clk
0:00:10.9]} 55... Ra1 {[%clk 0:00:08.9]} 56. a7 {[%clk 0:00:10.8]} 56... Nd4
{[%clk 0:00:08.7]} 57. Nhf5 {[%clk 0:00:10.7]} 57... Bxf5 {[%clk 0:00:08.4]} 58.
gxf5 {[%clk 0:00:10.9]} 58... b3 {[%clk 0:00:08.3]} 59. Nc4+ {[%clk 0:00:10.7]}
59... Kc3 {[%clk 0:00:08.2]} 60. Rc8 {[%clk 0:00:10.6]} 60... Rxa7 {[%clk
0:00:08.1]} 61. Na5+ {[%clk 0:00:10.2]} 61... Kb2 {[%clk 0:00:08.1]} 62. Nc4+
{[%clk 0:00:10.1]} 62... Kb1 {[%clk 0:00:08]} 63. Rd8 {[%clk 0:00:09.7]} 63...
Nc2 {[%clk 0:00:07.6]} 64. e4 {[%clk 0:00:09.2]} 64... b2 {[%clk 0:00:07.4]} 65.
Rb8 {[%clk 0:00:08]} 65... Rc7 {[%clk 0:00:07.3]} 66. Nxb2 {[%clk 0:00:05.2]}
66... Kc1 {[%clk 0:00:07.6]} 67. Nd3+ {[%clk 0:00:05.1]} 67... Kd2 {[%clk
0:00:08.2]} 68. Nf4 {[%clk 0:00:06]} 68... Nd4 {[%clk 0:00:08.4]} 69. Rd8 {[%clk
0:00:06.1]} 69... Kc3 {[%clk 0:00:08.4]} 70. Rd5 {[%clk 0:00:05.8]} 70... Ra7
{[%clk 0:00:08.1]} 71. Rd8 {[%clk 0:00:05.7]} 71... Ra2+ {[%clk 0:00:08.5]} 72.
Kg3 {[%clk 0:00:06.1]} 72... Nc2 {[%clk 0:00:09.1]} 73. Nd5+ {[%clk 0:00:06.2]}
73... Kd4 {[%clk 0:00:08.4]} 74. Nf4+ {[%clk 0:00:05.2]} 74... Ke3 {[%clk
0:00:08.8]} 75. Nd5+ {[%clk 0:00:05.1]} 75... Ke2 {[%clk 0:00:08.7]} 76. Nc3+
{[%clk 0:00:05.3]} 76... Ke3 {[%clk 0:00:09.1]} 77. Nxa2 {[%clk 0:00:05.8]}
77... Ne1 {[%clk 0:00:09.8]} 78. Nc1 {[%clk 0:00:05.8]} 78... Nxf3 {[%clk
0:00:10.7]} 79. Rd3+ {[%clk 0:00:05.5]} 79... Kxe4 {[%clk 0:00:10.5]} 80. Rxf3
{[%clk 0:00:05.9]} 80... Ke5 {[%clk 0:00:11.4]} 81. Rf4 {[%clk 0:00:06.3]} 81...
Kd5 {[%clk 0:00:11.5]} 82. Kg4 {[%clk 0:00:06.8]} 82... Ke5 {[%clk 0:00:12.4]}
83. Rf3 {[%clk 0:00:07.1]} 83... Kd5 {[%clk 0:00:13.3]} 84. Re3 {[%clk
0:00:07.5]} 84... Kd6 {[%clk 0:00:13.3]} 85. Re8 {[%clk 0:00:07.9]} 85... Kd5
{[%clk 0:00:14.2]} 86. Rf8 {[%clk 0:00:08.3]} 86... Kd6 {[%clk 0:00:15.1]} 87.
Rxf7 {[%clk 0:00:08.8]} 87... Ke5 {[%clk 0:00:15.6]} 88. Rg7 {[%clk 0:00:09.2]}
88... Kd5 {[%clk 0:00:16]} 89. Rg6 {[%clk 0:00:09.7]} 89... Ke5 {[%clk
0:00:16.9]} 90. Rh6 {[%clk 0:00:10.1]} 90... Kd5 {[%clk 0:00:16.9]} 91. Rxf6
{[%clk 0:00:10.6]} 91... Ke5 {[%clk 0:00:17.8]} 92. Re6+ {[%clk 0:00:10.9]} 1-0

[Event "*** Titled Tuesday Blitz"]
[Site "Chess.com"]
[Date "2020.05.05"]
[Round "8"]
[White "Zkid"]
[Black "LiemLe"]
[Result "1-0"]
[WhiteElo "2841"]
[BlackElo "2961"]
[TimeControl "180+1"]
[EndTime "11:38:22 PDT"]
[Termination "Zkid won by resignation"]

1. c4 {[%clk 0:02:59.4]} 1... e5 {[%clk 0:02:59.5]} 2. g3 {[%clk 0:02:59.3]}
2... Nf6 {[%clk 0:02:59.5]} 3. Bg2 {[%clk 0:02:59.2]} 3... d5 {[%clk 0:03:00]}
4. cxd5 {[%clk 0:02:59.1]} 4... Nxd5 {[%clk 0:03:00.9]} 5. Nc3 {[%clk 0:02:59]}
5... Nb6 {[%clk 0:03:00.8]} 6. Nf3 {[%clk 0:02:58.6]} 6... Nc6 {[%clk
0:03:00.6]} 7. Rb1 {[%clk 0:02:59]} 7... a5 {[%clk 0:02:58.8]} 8. O-O {[%clk
0:02:58.7]} 8... Be7 {[%clk 0:02:58]} 9. d3 {[%clk 0:02:58.6]} 9... O-O {[%clk
0:02:58.5]} 10. Be3 {[%clk 0:02:55.9]} 10... Be6 {[%clk 0:02:57.8]} 11. a3
{[%clk 0:02:54.2]} 11... Nd5 {[%clk 0:02:30.9]} 12. Nxd5 {[%clk 0:02:52.3]}
12... Bxd5 {[%clk 0:02:31.8]} 13. Qa4 {[%clk 0:02:49.9]} 13... Re8 {[%clk
0:02:25.5]} 14. Rbc1 {[%clk 0:02:46.3]} 14... Bf6 {[%clk 0:02:09.3]} 15. Nd2
{[%clk 0:02:32.2]} 15... Nd4 {[%clk 0:01:56.4]} 16. Bxd4 {[%clk 0:02:27.3]}
16... Bxg2 {[%clk 0:01:56.2]} 17. Kxg2 {[%clk 0:02:24.2]} 17... exd4 {[%clk
0:01:56.5]} 18. Ne4 {[%clk 0:02:22.2]} 18... c6 {[%clk 0:01:56.7]} 19. Qb3
{[%clk 0:02:10.7]} 19... Rb8 {[%clk 0:01:32.8]} 20. Rc5 {[%clk 0:01:55.6]} 20...
g6 {[%clk 0:01:23]} 21. Qa4 {[%clk 0:01:33]} 21... Be7 {[%clk 0:01:15]} 22. Re5
{[%clk 0:01:07.3]} 22... b5 {[%clk 0:00:44.1]} 23. Qc2 {[%clk 0:01:03.4]} 23...
f5 {[%clk 0:00:20]} 24. Nd2 {[%clk 0:00:32.3]} 24... Bd6 {[%clk 0:00:17.5]} 25.
Rxe8+ {[%clk 0:00:24.2]} 25... Qxe8 {[%clk 0:00:18.4]} 26. Nf3 {[%clk
0:00:24.2]} 26... c5 {[%clk 0:00:18.8]} 27. a4 {[%clk 0:00:21]} 27... bxa4
{[%clk 0:00:18.2]} 28. Ra1 {[%clk 0:00:20.6]} 28... Rb4 {[%clk 0:00:18.2]} 29.
Ra2 {[%clk 0:00:18]} 29... Kg7 {[%clk 0:00:18.5]} 30. Kf1 {[%clk 0:00:18.1]}
30... Qb5 {[%clk 0:00:16.4]} 31. Nd2 {[%clk 0:00:17.4]} 31... Qc6 {[%clk
0:00:16.9]} 32. Kg1 {[%clk 0:00:15]} 32... h5 {[%clk 0:00:17]} 33. Nc4 {[%clk
0:00:14.8]} 33... Bc7 {[%clk 0:00:17.3]} 34. Qd2 {[%clk 0:00:12.5]} 34... Qf6
{[%clk 0:00:15.6]} 35. Ra1 {[%clk 0:00:11.8]} 35... h4 {[%clk 0:00:15.6]} 36.
Qc2 {[%clk 0:00:11.7]} 36... f4 {[%clk 0:00:15.4]} 37. gxh4 {[%clk 0:00:08.5]}
37... f3 {[%clk 0:00:15.2]} 38. e4 {[%clk 0:00:06.8]} 38... dxe3 {[%clk
0:00:13.9]} 39. fxe3 {[%clk 0:00:06]} 39... Qxh4 {[%clk 0:00:14.5]} 40. Qf2
{[%clk 0:00:05.6]} 40... Qg4+ {[%clk 0:00:14.4]} 41. Kh1 {[%clk 0:00:05.9]}
41... Rb3 {[%clk 0:00:14.3]} 42. Rg1 {[%clk 0:00:05.6]} 42... Qh5 {[%clk
0:00:14.6]} 43. e4 {[%clk 0:00:04.4]} 43... Rxd3 {[%clk 0:00:14.5]} 44. e5
{[%clk 0:00:04.1]} 44... Bxe5 {[%clk 0:00:14.3]} 45. Nxe5 {[%clk 0:00:03.7]}
45... Qxe5 {[%clk 0:00:15.2]} 46. Qh4 {[%clk 0:00:03.5]} 46... Rd6 {[%clk
0:00:14]} 47. Qf2 {[%clk 0:00:03.1]} 47... Qd5 {[%clk 0:00:13.6]} 48. h3 {[%clk
0:00:02.3]} 48... Rf6 {[%clk 0:00:13.4]} 49. Rc1 {[%clk 0:00:02]} 49... c4
{[%clk 0:00:13]} 50. Re1 {[%clk 0:00:01.7]} 50... Rf5 {[%clk 0:00:12.3]} 51.
Re7+ {[%clk 0:00:01.3]} 51... Rf7 {[%clk 0:00:12.9]} 52. Re3 {[%clk 0:00:01.9]}
52... Qf5 {[%clk 0:00:12.8]} 53. Kh2 {[%clk 0:00:02.3]} 53... Qf4+ {[%clk
0:00:13.4]} 54. Kh1 {[%clk 0:00:02.7]} 54... Qxe3 {[%clk 0:00:13.5]} 55. Qxe3
{[%clk 0:00:03.6]} 55... f2 {[%clk 0:00:14.4]} 56. Qd4+ {[%clk 0:00:03.9]} 56...
Kh7 {[%clk 0:00:14.8]} 57. Qh4+ {[%clk 0:00:04]} 57... Kg8 {[%clk 0:00:15.2]}
58. Qd8+ {[%clk 0:00:04.5]} 58... Rf8 {[%clk 0:00:15.1]} 59. Qd5+ {[%clk
0:00:04.5]} 59... Kh7 {[%clk 0:00:15.1]} 60. Qd7+ {[%clk 0:00:04.2]} 60... Kh6
{[%clk 0:00:15.5]} 61. Qd2+ {[%clk 0:00:04.6]} 61... Kh7 {[%clk 0:00:15]} 62.
Qd7+ {[%clk 0:00:04.7]} 62... Kh8 {[%clk 0:00:14.8]} 63. Qd4+ {[%clk 0:00:04.9]}
63... Kh7 {[%clk 0:00:14.7]} 64. Qh4+ {[%clk 0:00:04.3]} 64... Kg8 {[%clk
0:00:14.8]} 65. Qxc4+ {[%clk 0:00:04.4]} 65... Rf7 {[%clk 0:00:15.4]} 66. Qf1
{[%clk 0:00:05.1]} 66... Kg7 {[%clk 0:00:14.5]} 67. Kg2 {[%clk 0:00:06]} 67...
Kh7 {[%clk 0:00:14.3]} 68. Kg3 {[%clk 0:00:06]} 68... Rf5 {[%clk 0:00:13.5]} 69.
h4 {[%clk 0:00:06.2]} 69... Kg7 {[%clk 0:00:13.9]} 70. Kg4 {[%clk 0:00:06.6]}
70... Kh6 {[%clk 0:00:12.5]} 71. h5 {[%clk 0:00:06.2]} 71... Rg5+ {[%clk
0:00:12.7]} 72. Kh4 {[%clk 0:00:05.5]} 72... Rxh5+ {[%clk 0:00:13]} 73. Kg3
{[%clk 0:00:06.1]} 73... Rf5 {[%clk 0:00:13.9]} 74. Kg2 {[%clk 0:00:06.4]} 74...
Kg7 {[%clk 0:00:14]} 75. Kg3 {[%clk 0:00:06.7]} 75... g5 {[%clk 0:00:14.4]} 76.
Kg4 {[%clk 0:00:06.6]} 76... Kg6 {[%clk 0:00:14.8]} 77. Qa6+ {[%clk 0:00:06.4]}
77... Rf6 {[%clk 0:00:15.1]} 78. Qd3+ {[%clk 0:00:06.9]} 78... Kh6 {[%clk
0:00:15.1]} 79. Qh3+ {[%clk 0:00:06.4]} 79... Kg7 {[%clk 0:00:15.4]} 80. Qf1
{[%clk 0:00:06.3]} 80... Kg6 {[%clk 0:00:15.6]} 81. Kg3 {[%clk 0:00:06.7]} 81...
Rf4 {[%clk 0:00:15.2]} 82. Kg2 {[%clk 0:00:06.8]} 82... Kh5 {[%clk 0:00:15.3]}
83. Qe2+ {[%clk 0:00:06.7]} 83... Kg6 {[%clk 0:00:14.9]} 84. Kf1 {[%clk
0:00:06.8]} 84... g4 {[%clk 0:00:14.8]} 85. Qe6+ {[%clk 0:00:06.2]} 85... Kg5
{[%clk 0:00:15.2]} 86. Qe5+ {[%clk 0:00:06.6]} 86... Rf5 {[%clk 0:00:15.5]} 87.
Qg7+ {[%clk 0:00:06.1]} 87... Kh5 {[%clk 0:00:16]} 88. Qh7+ {[%clk 0:00:06.1]}
88... Kg5 {[%clk 0:00:16.4]} 89. Qg7+ {[%clk 0:00:07]} 89... Kh5 {[%clk
0:00:16.8]} 90. Qh7+ {[%clk 0:00:06.9]} 90... Kg5 {[%clk 0:00:17.2]} 91. Qh2
{[%clk 0:00:07.3]} 91... Rf3 {[%clk 0:00:16.2]} 92. Qe5+ {[%clk 0:00:07.1]}
92... Rf5 {[%clk 0:00:16.3]} 93. Qe3+ {[%clk 0:00:06.8]} 93... Kh5 {[%clk
0:00:16.3]} 94. Qd3 {[%clk 0:00:06.2]} 94... Kg5 {[%clk 0:00:16.5]} 95. Qe3+
{[%clk 0:00:05.9]} 95... Kh5 {[%clk 0:00:16.9]} 96. Qd2 {[%clk 0:00:05.6]} 96...
g3 {[%clk 0:00:16.4]} 97. Qe2+ {[%clk 0:00:04.3]} 97... Kg5 {[%clk 0:00:15.6]}
98. Qe3+ {[%clk 0:00:04.1]} 98... Kg4 {[%clk 0:00:15.8]} 99. Qe4+ {[%clk
0:00:04.5]} 99... Rf4 {[%clk 0:00:15.8]} 100. Qg6+ {[%clk 0:00:04.6]} 100... Kh4
{[%clk 0:00:15.9]} 101. Qh6+ {[%clk 0:00:04.9]} 101... Kg4 {[%clk 0:00:16.4]}
102. Qg6+ {[%clk 0:00:05.8]} 102... Kf3 {[%clk 0:00:16.6]} 103. Qh5+ {[%clk
0:00:03.8]} 103... Ke3 {[%clk 0:00:14.7]} 104. Qe2+ {[%clk 0:00:03.3]} 104...
Kd4 {[%clk 0:00:14.8]} 105. Qd2+ {[%clk 0:00:03.4]} 105... Ke4 {[%clk
0:00:14.9]} 106. Qe2+ {[%clk 0:00:03.2]} 106... Kd4 {[%clk 0:00:15]} 107. Qd2+
{[%clk 0:00:03.1]} 107... Ke4 {[%clk 0:00:15.3]} 108. Qc2+ {[%clk 0:00:03.2]}
108... Ke5 {[%clk 0:00:12.6]} 109. Qc3+ {[%clk 0:00:03.4]} 109... Ke4 {[%clk
0:00:12.2]} 110. Qxg3 {[%clk 0:00:04.3]} 110... Rf5 {[%clk 0:00:11.7]} 111. Qg4+
{[%clk 0:00:03.9]} 111... Rf4 {[%clk 0:00:11.5]} 112. Qe2+ {[%clk 0:00:04.2]}
112... Kf5 {[%clk 0:00:11.5]} 113. Qb5+ {[%clk 0:00:04.6]} 113... Kg4 {[%clk
0:00:11.7]} 114. Qxa5 {[%clk 0:00:04.7]} 114... Kh4 {[%clk 0:00:11.5]} 115. Qd2
{[%clk 0:00:04.7]} 115... Kg4 {[%clk 0:00:11.9]} 116. Qe3 {[%clk 0:00:04.9]}
116... Kh4 {[%clk 0:00:11.7]} 117. Qxf4+ {[%clk 0:00:04.7]} 117... Kh5 {[%clk
0:00:12]} 118. Qxa4 {[%clk 0:00:05]} 1-0

[Event "*** Titled Tuesday Blitz"]
[Site "Chess.com"]
[Date "2020.05.05"]
[Round "8"]
[White "Durarbayli"]
[Black "Bulldog167"]
[Result "0-1"]
[WhiteElo "2821"]
[BlackElo "2936"]
[TimeControl "180+1"]
[EndTime "11:38:28 PDT"]
[Termination "Bulldog167 won by resignation"]

1. e4 {[%clk 0:03:00.9]} 1... e6 {[%clk 0:02:54.3]} 2. d4 {[%clk 0:02:57.1]}
2... d5 {[%clk 0:02:54.8]} 3. Nd2 {[%clk 0:02:58]} 3... c5 {[%clk 0:02:54.3]} 4.
Ngf3 {[%clk 0:02:57.3]} 4... cxd4 {[%clk 0:02:54.5]} 5. Nxd4 {[%clk 0:02:56.9]}
5... Nf6 {[%clk 0:02:54.4]} 6. exd5 {[%clk 0:02:54.4]} 6... Nxd5 {[%clk
0:02:55.3]} 7. Bb5+ {[%clk 0:02:51]} 7... Bd7 {[%clk 0:02:53.5]} 8. a4 {[%clk
0:02:40.1]} 8... Be7 {[%clk 0:02:35.3]} 9. O-O {[%clk 0:02:25.3]} 9... O-O
{[%clk 0:02:34.9]} 10. N2f3 {[%clk 0:02:24.7]} 10... a6 {[%clk 0:02:30.1]} 11.
Bd3 {[%clk 0:02:23.8]} 11... Nc6 {[%clk 0:02:27.6]} 12. c3 {[%clk 0:02:22.2]}
12... Nxd4 {[%clk 0:02:23.3]} 13. Nxd4 {[%clk 0:02:23.1]} 13... Bf6 {[%clk
0:02:23.1]} 14. Be4 {[%clk 0:02:13.4]} 14... Rc8 {[%clk 0:02:07.7]} 15. Qd3
{[%clk 0:02:06.2]} 15... g6 {[%clk 0:02:03.9]} 16. Bh6 {[%clk 0:02:04.3]} 16...
Re8 {[%clk 0:01:58.5]} 17. Rfe1 {[%clk 0:01:36]} 17... Bc6 {[%clk 0:01:41.5]}
18. Nxc6 {[%clk 0:01:33.7]} 18... Rxc6 {[%clk 0:01:42.4]} 19. Bxd5 {[%clk
0:01:29.5]} 19... exd5 {[%clk 0:01:40.3]} 20. Qxd5 {[%clk 0:01:13.2]} 20... g5
{[%clk 0:01:17.5]} 21. Rxe8+ {[%clk 0:00:48.4]} 21... Qxe8 {[%clk 0:01:18.4]}
22. Bxg5 {[%clk 0:00:48.5]} 22... Re6 {[%clk 0:01:19.1]} 23. h4 {[%clk 0:00:48]}
23... Re1+ {[%clk 0:00:55.1]} 24. Rxe1 {[%clk 0:00:47.1]} 24... Qxe1+ {[%clk
0:00:56]} 25. Kh2 {[%clk 0:00:47.6]} 25... Be5+ {[%clk 0:00:48.7]} 26. Kh3
{[%clk 0:00:17.9]} 26... h5 {[%clk 0:00:48.7]} 27. g3 {[%clk 0:00:14.1]} 27...
Qxf2 {[%clk 0:00:41.7]} 28. Qg2 {[%clk 0:00:14.6]} 28... Qf5+ {[%clk 0:00:36.1]}
29. Kh2 {[%clk 0:00:15]} 29... f6 {[%clk 0:00:35]} 30. Be3 {[%clk 0:00:15]}
30... Qg4 {[%clk 0:00:34.3]} 31. Bf4 {[%clk 0:00:12.8]} 31... Kh8 {[%clk
0:00:24.7]} 32. Bxe5 {[%clk 0:00:09.8]} 32... fxe5 {[%clk 0:00:25.6]} 33. Qxb7
{[%clk 0:00:10.1]} 33... e4 {[%clk 0:00:26.2]} 34. Qb8+ {[%clk 0:00:10.3]} 34...
Kh7 {[%clk 0:00:26.2]} 35. Qc7+ {[%clk 0:00:10.7]} 35... Kh8 {[%clk 0:00:25.2]}
36. Qd8+ {[%clk 0:00:10.5]} 36... Kh7 {[%clk 0:00:25.7]} 37. Qe7+ {[%clk
0:00:10.7]} 37... Kh8 {[%clk 0:00:25.9]} 38. Qf8+ {[%clk 0:00:10.8]} 38... Kh7
{[%clk 0:00:26.5]} 39. Qf7+ {[%clk 0:00:11.2]} 39... Kh8 {[%clk 0:00:27.1]} 40.
Qf6+ {[%clk 0:00:11.5]} 40... Kh7 {[%clk 0:00:26.7]} 41. Qe7+ {[%clk 0:00:09.2]}
41... Kh8 {[%clk 0:00:26.9]} 42. Qd6 {[%clk 0:00:09.3]} 42... Qe2+ {[%clk
0:00:25.7]} 43. Kh3 {[%clk 0:00:08.9]} 43... Qf1+ {[%clk 0:00:24.1]} 44. Kh2
{[%clk 0:00:09.3]} 44... Qf2+ {[%clk 0:00:24.5]} 45. Kh3 {[%clk 0:00:09.7]}
45... Qf1+ {[%clk 0:00:09.6]} 46. Kh2 {[%clk 0:00:09.8]} 46... Qf2+ {[%clk
0:00:09.9]} 47. Kh3 {[%clk 0:00:10.2]} 47... e3 {[%clk 0:00:07.5]} 48. Qd8+
{[%clk 0:00:09.2]} 48... Kg7 {[%clk 0:00:07.7]} 49. Qe7+ {[%clk 0:00:09.6]}
49... Kg8 {[%clk 0:00:06.1]} 50. Qe8+ {[%clk 0:00:10]} 50... Kg7 {[%clk
0:00:06.1]} 51. Qe7+ {[%clk 0:00:10.2]} 51... Kg6 {[%clk 0:00:06.1]} 52. Qe6+
{[%clk 0:00:10.2]} 52... Kg7 {[%clk 0:00:06.5]} 53. Qe5+ {[%clk 0:00:09.9]}
53... Kg8 {[%clk 0:00:03.7]} 54. Qe6+ {[%clk 0:00:09.6]} 54... Kg7 {[%clk
0:00:03.6]} 55. Qe5+ {[%clk 0:00:09.6]} 55... Kg8 {[%clk 0:00:04.2]} 56. Qd5+
{[%clk 0:00:09.7]} 56... Kf8 {[%clk 0:00:04.2]} 57. Qc5+ {[%clk 0:00:09.5]}
57... Ke8 {[%clk 0:00:04.6]} 58. Qxh5+ {[%clk 0:00:09.1]} 58... Kd8 {[%clk
0:00:04.9]} 59. Qd5+ {[%clk 0:00:09]} 59... Kc8 {[%clk 0:00:05.2]} 60. Qc6+
{[%clk 0:00:08.9]} 60... Kd8 {[%clk 0:00:05.5]} 61. Qd6+ {[%clk 0:00:09.3]}
61... Kc8 {[%clk 0:00:06.2]} 62. Qxa6+ {[%clk 0:00:09]} 62... Kd8 {[%clk
0:00:06.8]} 63. Qd6+ {[%clk 0:00:08.8]} 63... Kc8 {[%clk 0:00:07.5]} 64. Qc6+
{[%clk 0:00:08.7]} 64... Kd8 {[%clk 0:00:08.1]} 65. Qb6+ {[%clk 0:00:08.9]}
65... Kc8 {[%clk 0:00:08.7]} 66. Qc6+ {[%clk 0:00:08.7]} 66... Kd8 {[%clk
0:00:09.3]} 67. Qg2 {[%clk 0:00:08.3]} 67... Qd2 {[%clk 0:00:04.7]} 68. Qa8+
{[%clk 0:00:05.8]} 68... Kc7 {[%clk 0:00:04.7]} 69. Qa7+ {[%clk 0:00:05.8]}
69... Kc6 {[%clk 0:00:05.3]} 70. Qa6+ {[%clk 0:00:05.9]} 70... Kd5 {[%clk
0:00:05.1]} 71. Qb7+ {[%clk 0:00:06.1]} 71... Ke5 {[%clk 0:00:03.9]} 72. Qe7+
{[%clk 0:00:05.8]} 72... Kd5 {[%clk 0:00:04.5]} 73. Qf7+ {[%clk 0:00:05.2]}
73... Ke4 {[%clk 0:00:03.4]} 74. Qg6+ {[%clk 0:00:04.8]} 74... Kf3 {[%clk
0:00:02.9]} 75. Qg4+ {[%clk 0:00:04.3]} 75... Kf2 {[%clk 0:00:03.3]} 76. Qf4+
{[%clk 0:00:04.4]} 76... Kg1 {[%clk 0:00:03.5]} 77. Qf3 {[%clk 0:00:01.9]} 77...
Qh2+ {[%clk 0:00:01.5]} 78. Kg4 {[%clk 0:00:02.5]} 78... Qf2 {[%clk 0:00:01.8]}
79. h5 {[%clk 0:00:01.7]} 79... e2 {[%clk 0:00:01.8]} 80. Qxf2+ {[%clk
0:00:01.1]} 80... Kxf2 {[%clk 0:00:02.3]} 81. h6 {[%clk 0:00:02]} 81... e1=Q
{[%clk 0:00:03.2]} 82. Kg5 {[%clk 0:00:02.9]} 82... Qe5+ {[%clk 0:00:02.8]} 83.
Kg6 {[%clk 0:00:03.1]} 83... Qxg3+ {[%clk 0:00:03.4]} 84. Kf5 {[%clk 0:00:03]}
84... Qc7 {[%clk 0:00:02.7]} 85. Ke6 {[%clk 0:00:03.9]} 85... Qc6+ {[%clk
0:00:02.6]} 86. Ke5 {[%clk 0:00:03.9]} 86... Qxh6 {[%clk 0:00:02.8]} 87. b3
{[%clk 0:00:03.3]} 87... Qa6 {[%clk 0:00:03.3]} 88. Kd5 {[%clk 0:00:02.8]} 88...
Ke3 {[%clk 0:00:03.9]} 89. c4 {[%clk 0:00:03.7]} 89... Kd3 {[%clk 0:00:03.9]}
90. c5 {[%clk 0:00:04.6]} 90... Qb7+ {[%clk 0:00:04.2]} 91. c6 {[%clk
0:00:05.5]} 91... Qxb3+ {[%clk 0:00:04.1]} 92. Kc5 {[%clk 0:00:06.4]} 92... Qb8
{[%clk 0:00:03.8]} 93. a5 {[%clk 0:00:06.2]} 93... Ke4 {[%clk 0:00:04.2]} 94. a6
{[%clk 0:00:06.7]} 94... Ke5 {[%clk 0:00:04.6]} 0-1